bitfinex-derivatives/quotes_BTCF0:USTF0_20240814
["timestamp","ask_amount","ask_price","bid_price","bid_amount"]
[1723603115042,0.00037,60753.0,60752.0,0.443075]
[1723603115646,0.00037,60753.0,60752.0,0.3608]
[1723603117934,0.00037,60753.0,60752.0,0.3618]
[1723603118347,0.00037,60753.0,60752.0,0.3628]
[1723603123941,0.00037,60753.0,60752.0,0.6474]
[1723603124143,0.00037,60753.0,60752.0,1.5412]
[1723603124451,0.00037,60753.0,60752.0,1.54960806]
[1723603124846,0.00037,60753.0,60752.0,1.84200806]
[1723603125047,0.00037,60753.0,60752.0,1.69200806]
[1723603125550,0.00037,60753.0,60752.0,2.05280806]
[1723603125747,0.00024703,60759.0,60752.0,2.26156483]
[1723603125952,0.00024703,60759.0,60758.0,0.6454]
[1723603126352,0.1515,60772.0,60758.0,1.68916]
[1723603126546,0.0748,60772.0,60771.0,1.088449]
[1723603126748,0.0767,60778.0,60773.0,0.082245]
[1723603126952,0.0767,60778.0,60777.0,0.3608]
[1723603127457,0.1494,60778.0,60777.0,0.3608]
[1723603128252,0.21472511,60778.0,60777.0,0.3608]
[1723603129056,0.21472511,60778.0,60777.0,0.3618]
[1723603129244,0.1494,60778.0,60777.0,0.3618]
[1723603129751,0.0727,60778.0,60777.0,0.3618]
[1723603129962,0.06531043,60783.0,60781.0,0.082235]
[1723603130251,0.14315726,60784.0,60781.0,0.082235]
[1723603131153,0.07784683,60784.0,60781.0,0.082235]
[1723603132942,0.07784683,60784.0,60781.0,0.084235]
[1723603134255,0.07784683,60784.0,60781.0,0.085235]
[1723603134657,0.07784683,60784.0,60781.0,0.003]
[1723603134956,0.14315726,60784.0,60781.0,0.003]
[1723603135357,0.14754343,60783.0,60781.0,0.003]
[1723603135756,0.06531043,60782.0,60781.0,0.003]
[1723603135947,0.30600143,60782.0,60771.0,0.4614615]
[1723603136149,0.3608,60777.0,60771.0,0.5414705]
[1723603136348,0.30600143,60776.0,60771.0,0.5414705]
[1723603136560,0.30600143,60775.0,60771.0,0.5414705]
[1723603136750,0.30600143,60774.0,60771.0,0.5414705]
[1723603136950,0.30600143,60773.0,60771.0,0.28893586]
[1723603137152,0.30600143,60772.0,60771.0,0.28893586]
[1723603137657,0.30600143,60772.0,60771.0,0.57353586]
[1723603139053,0.30600143,60772.0,60771.0,0.57453586]
[1723603139262,0.30700143,60772.0,60771.0,0.57553586]
[1723603139451,0.30699214,60772.0,60771.0,0.38054064]
[1723603140254,0.22988243,60772.0,60771.0,0.38054064]
[1723603140456,0.30699211,60772.0,60771.0,0.38054064]
[1723603141166,0.30699211,60772.0,60771.0,0.30230757]
[1723603141663,0.30699211,60772.0,60771.0,1.36594757]
[1723603142563,0.30699057,60772.0,60771.0,1.37616269]
[1723603142769,0.30699057,60772.0,60771.0,0.75910412]
[1723603143059,0.30699057,60772.0,60771.0,0.17225668]
[1723603143263,0.2175137,60772.0,60771.0,0.178]
[1723603143465,0.2175137,60772.0,60771.0,0.260249]
[1723603143763,0.30599057,60772.0,60771.0,0.260249]
[1723603143956,0.21240876,60772.0,60771.0,0.090249]
[1723603144259,0.21240876,60772.0,60771.0,0.095249]
[1723603144463,0.3608,60776.0,60771.0,0.095249]
[1723603144764,0.3608,60776.0,60772.0,0.082247]
[1723603144952,0.3608,60776.0,60775.0,0.366843]
[1723603145157,0.3608,60776.0,60775.0,0.2846]
[1723603145352,0.3608,60776.0,60771.0,0.013]
[1723603145560,0.3608,60776.0,60771.0,0.008]
[1723603145760,0.3608,60776.0,60771.0,0.090249]
[1723603145960,0.3608,60776.0,60771.0,0.082249]
[1723603146162,0.3608,60776.0,60772.0,0.007]
[1723603146562,0.3608,60777.0,60772.0,0.007]
[1723603146770,0.3608,60777.0,60771.0,0.005]
[1723603147267,0.3608,60777.0,60776.0,0.082242]
[1723603147458,0.3608,60777.0,60772.0,0.007]
[1723603147659,0.3608,60777.0,60772.0,0.089247]
[1723603149563,0.3608,60777.0,60772.0,0.092247]
[1723603150669,0.3608,60777.0,60772.0,0.085247]
[1723603151060,0.3608,60777.0,60772.0,0.003]
[1723603151266,0.3608,60777.0,60772.0,0.01]
[1723603151468,0.3608,60777.0,60775.0,0.2846]
[1723603152174,0.3608,60777.0,60776.0,0.082242]
[1723603154683,0.0727,60780.0,60779.0,0.082238]
[1723603155178,0.13806026,60780.0,60779.0,0.082238]
[1723603156180,0.0727,60780.0,60779.0,0.13096511]
[1723603156976,0.07784683,60784.0,60779.0,0.06517479]
[1723603157176,0.00024683,60784.0,60783.0,0.082233]
[1723603157580,0.00024683,60784.0,60781.0,0.06517479]
[1723603157782,0.00024683,60784.0,60780.0,0.14277479]
[1723603158284,0.00024683,60784.0,60780.0,0.06517479]
[1723603158885,0.00124683,60784.0,60779.0,0.06517479]
[1723603159088,0.17974073,60780.0,60779.0,0.082238]
[1723603159283,0.32884579,60780.0,60779.0,0.082238]
[1723603160593,0.14910506,60780.0,60779.0,0.082238]
[1723603160794,0.15010506,60780.0,60779.0,0.082238]
[1723603161292,0.32984579,60780.0,60779.0,0.082238]
[1723603161888,0.15010506,60780.0,60779.0,0.082238]
[1723603162393,0.32984579,60780.0,60779.0,0.082238]
[1723603163088,0.15010506,60780.0,60779.0,0.082238]
[1723603163494,0.32984579,60780.0,60779.0,0.082238]
[1723603163695,0.15010506,60780.0,60779.0,0.082238]
[1723603163892,0.20905854,60780.0,60775.0,0.16417902]
[1723603164094,0.20805854,60779.0,60778.0,0.082239]
[1723603167802,0.50990506,60779.0,60775.0,0.01350771]
[1723603168102,0.14910506,60778.0,60775.0,0.01350771]
[1723603168293,0.3608,60779.0,60775.0,0.01350771]
[1723603168294,0.20805854,60777.0,60775.0,0.01350771]
[1723603168494,0.20805854,60776.0,60775.0,0.01350771]
[1723603168692,0.20805854,60776.0,60775.0,0.003]
[1723603170297,0.20808169,60776.0,60775.0,0.003]
[1723603170602,0.27553673,60776.0,60775.0,0.003]
[1723603171695,0.03175563,60776.0,60775.0,0.006]
[1723603172296,0.39255563,60776.0,60775.0,0.006]
[1723603172498,0.39255563,60776.0,60775.0,0.003]
[1723603172901,0.39255563,60776.0,60775.0,0.002]
[1723603173807,0.45935384,60776.0,60775.0,0.002]
[1723603174199,0.3608,60776.0,60775.0,0.002]
[1723603176001,0.3608,60776.0,60775.0,0.368843]
[1723603176497,0.4429181,60776.0,60775.0,0.368843]
[1723603176707,0.3608,60776.0,60775.0,0.368843]
[1723603177207,0.44291787,60776.0,60775.0,0.368843]
[1723603177707,0.08211787,60778.0,60777.0,0.082241]
[1723603177903,0.08211787,60780.0,60779.0,0.082238]
[1723603178103,0.3608,60781.0,60780.0,0.082237]
[1723603178104,0.44291787,60781.0,60780.0,0.082237]
[1723603178293,0.3608,60781.0,60780.0,0.082237]
[1723603178806,0.3608,60781.0,60775.0,0.002]
[1723603179107,0.3608,60781.0,60775.0,0.234243]
[1723603179108,0.06568899,60776.0,60775.0,0.234243]
[1723603179805,0.06568899,60776.0,60775.0,0.084243]
[1723603180695,0.18141667,60776.0,60775.0,0.082243]
[1723603181504,0.18141667,60776.0,60775.0,0.084243]
[1723603182006,0.18141667,60776.0,60775.0,0.09437905]
[1723603187702,0.12311243,60776.0,60775.0,0.73797905]
[1723603188403,0.12311243,60776.0,60775.0,0.24437905]
[1723603188813,0.12311243,60776.0,60775.0,0.73797905]
[1723603190413,0.12311243,60776.0,60775.0,1.09877905]
[1723603190609,0.12311243,60776.0,60775.0,0.60517905]
[1723603191113,0.00065194,60776.0,60775.0,0.60517905]
[1723603191310,0.002,60780.0,60779.0,0.082238]
[1723603192605,0.3608,60785.0,60779.0,0.082238]
[1723603192806,0.3608,60785.0,60777.0,0.2846]
[1723603193106,0.3608,60785.0,60777.0,0.4446]
[1723603193310,0.3608,60785.0,60782.0,0.082233]
[1723603193510,0.15543193,60785.0,60783.0,0.45739039]
[1723603193809,0.1467,60791.0,60784.0,0.57169472]
[1723603194116,0.1467,60791.0,60785.0,0.27772407]
[1723603194306,0.1467,60791.0,60786.0,0.27772407]
[1723603194509,0.1467,60791.0,60787.0,0.27772407]
[1723603194708,0.3608,60790.0,60788.0,0.27772407]
[1723603194908,0.3608,60790.0,60789.0,0.27772407]
[1723603195111,0.3608,60790.0,60789.0,0.27772409]
[1723603197303,0.3668,60790.0,60789.0,0.27872409]
[1723603197819,0.3668,60790.0,60789.0,0.27972409]
[1723603199016,1.342543,60790.0,60789.0,0.12726062]
[1723603199621,1.342543,60790.0,60789.0,0.002]
[1723603199916,1.342543,60790.0,60789.0,0.27973482]
[1723603200314,0.942543,60790.0,60789.0,0.27973482]
[1723603200616,1.342543,60790.0,60789.0,0.27973482]
[1723603201411,1.342543,60790.0,60784.0,0.11530432]
[1723603201412,0.08223,60785.0,60784.0,0.09901326]
[1723603201612,0.44303,60785.0,60784.0,0.12627234]
[1723603201819,1.33659,60785.0,60784.0,0.12627234]
[1723603202514,1.33659,60785.0,60784.0,0.12627558]
[1723603202711,1.41882,60785.0,60784.0,0.12627558]
[1723603202919,1.41882,60785.0,60773.0,0.00224]
[1723603202920,0.082237,60780.0,60773.0,0.00224]
[1723603203223,0.082237,60780.0,60769.0,0.11430432]
[1723603203224,0.082246,60773.0,60772.0,0.08176352]
[1723603203414,0.082246,60773.0,60754.0,0.3632]
[1723603203415,0.082251,60770.0,60769.0,0.08176352]
[1723603203617,0.082251,60770.0,60769.0,0.12530929]
[1723603203924,0.975931,60770.0,60769.0,0.12530929]
[1723603204315,0.975931,60770.0,60769.0,0.20693903]
[1723603204517,0.575931,60770.0,60769.0,0.20693903]
[1723603204719,0.975931,60770.0,60769.0,0.20693903]
[1723603205123,0.90392727,60770.0,60769.0,0.20693903]
[1723603205331,0.01224727,60770.0,60769.0,0.2069041]
[1723603205518,0.002,60770.0,60769.0,0.12530929]
[1723603206210,0.01023272,60771.0,60769.0,0.12530929]
[1723603206414,0.1499,60773.0,60767.0,0.082254]
[1723603206415,0.002,60770.0,60767.0,0.09290048]
[1723603206623,0.3608,60769.0,60768.0,0.12530014]
[1723603206822,0.002,60770.0,60768.0,0.20755314]
[1723603207022,0.002,60770.0,60769.0,0.22317077]
[1723603207321,0.002,60770.0,60768.0,0.18012363]
[1723603207524,0.0716,60773.0,60769.0,0.27779529]
[1723603207718,0.003,60771.0,60770.0,0.27779529]
[1723603208317,0.0716,60773.0,60770.0,0.27779529]
[1723603208511,0.3608,60774.0,60771.0,0.27779529]
[1723603208723,0.3608,60774.0,60773.0,0.09784777]
[1723603208919,0.3608,60774.0,60773.0,0.2231405]
[1723603209119,0.00024683,60776.0,60773.0,0.27778574]
[1723603209322,0.00024683,60776.0,60774.0,0.27778574]
[1723603209517,0.00024683,60776.0,60775.0,0.12529273]
[1723603209923,0.00024683,60776.0,60775.0,0.27777914]
[1723603210227,0.00024683,60776.0,60775.0,0.12529273]
[1723603210427,0.00024683,60776.0,60775.0,0.27777891]
[1723603211021,0.0723,60783.0,60775.0,1.01480707]
[1723603211326,0.443019,60793.0,60776.0,0.27777891]
[1723603211520,0.0723,60792.0,60777.0,0.27777891]
[1723603211720,0.1468,60792.0,60778.0,0.27777891]
[1723603211928,0.1468,60792.0,60779.0,0.27773799]
[1723603211929,0.01058589,60786.0,60779.0,0.27773799]
[1723603212223,0.00024683,60786.0,60780.0,0.27773799]
[1723603212823,0.00024683,60786.0,60780.0,0.15247069]
[1723603213028,0.00024683,60786.0,60780.0,0.27773723]
[1723603213418,0.3618,60781.0,60780.0,0.27773723]
[1723603213629,0.001,60781.0,60780.0,0.27773723]
[1723603214415,0.36104683,60786.0,60780.0,0.27773723]
[1723603214620,0.36104683,60786.0,60783.0,0.09786842]
[1723603214833,0.08223,60785.0,60784.0,0.2068319]
[1723603215032,0.36104683,60786.0,60781.0,0.08156536]
[1723603215235,0.36104683,60786.0,60776.0,0.00024683]
[1723603215236,0.08223,60785.0,60784.0,0.06526823]
[1723603215726,0.08223,60785.0,60780.0,0.08156536]
[1723603215727,0.97579,60785.0,60780.0,0.08156536]
[1723603215915,0.97579,60785.0,60776.0,0.00024683]
[1723603215916,0.3618,60781.0,60779.0,0.08156536]
[1723603216121,0.1527,60780.0,60779.0,0.08156536]
[1723603216317,0.1527,60780.0,60779.0,0.20684481]
[1723603216521,0.1527,60780.0,60779.0,0.12527945]
[1723603216834,0.1527,60780.0,60779.0,0.20688489]
[1723603216835,1.0463,60780.0,60779.0,0.20688489]
[1723603217032,1.1203,60780.0,60779.0,0.20688489]
[1723603217531,1.4811,60780.0,60779.0,0.20688489]
[1723603218323,1.4811,60780.0,60779.0,0.12527945]
[1723603218519,0.9875,60780.0,60779.0,0.12527945]
[1723603218727,1.4811,60780.0,60779.0,0.12527945]
[1723603219828,1.566337,60780.0,60779.0,0.12527945]
[1723603220028,0.082239,60779.0,60778.0,0.08161946]
[1723603220326,0.082241,60777.0,60776.0,0.00024683]
[1723603220828,0.975841,60777.0,60776.0,0.00024683]
[1723603221328,0.975841,60777.0,60776.0,0.04924122]
[1723603221534,0.975841,60777.0,60776.0,0.00024683]
[1723603221830,0.975841,60777.0,60776.0,0.00124683]
[1723603224035,1.697441,60777.0,60776.0,0.00124683]
[1723603225423,1.697441,60777.0,60776.0,0.00024683]
[1723603225622,1.7101484,60777.0,60776.0,0.00024683]
[1723603226130,1.7171484,60777.0,60776.0,0.00024683]
[1723603226530,1.7171484,60777.0,60775.0,0.04899439]
[1723603226531,1.7993894,60777.0,60775.0,0.04899439]
[1723603226737,0.082256,60766.0,60765.0,0.04901277]
[1723603227033,0.082256,60766.0,60758.0,0.01058812]
[1723603227034,0.082264,60760.0,60758.0,0.01058812]
[1723603227237,0.082268,60757.0,60755.0,0.06531965]
[1723603227530,0.082271,60755.0,60753.0,0.06531965]
[1723603227930,0.30318977,60756.0,60753.0,0.08161946]
[1723603228243,0.30318977,60756.0,60754.0,0.08161946]
[1723603228534,0.30318977,60756.0,60755.0,0.1415]
[1723603228928,0.30318977,60756.0,60755.0,0.34844557]
[1723603229133,0.30318977,60756.0,60755.0,0.26682611]
[1723603229323,0.002,60760.0,60758.0,0.001]
[1723603229731,0.001,60760.0,60759.0,0.0712]
[1723603230237,0.00024683,60762.0,60759.0,0.0712]
[1723603231135,0.00024683,60762.0,60757.0,0.08163444]
[1723603231136,0.36104683,60762.0,60757.0,0.08163444]
[1723603231526,0.002,60760.0,60759.0,0.001]
[1723603231733,0.003,60760.0,60759.0,0.001]
[1723603232136,0.004,60760.0,60759.0,0.007]
[1723603235143,0.004,60760.0,60759.0,0.008]
[1723603236835,0.002,60760.0,60759.0,0.006]
[1723603239055,0.002,60760.0,60759.0,0.07128407]
[1723603239658,1.18036,60760.0,60759.0,0.006]
[1723603240454,0.89576,60760.0,60759.0,0.006]
[1723603241142,0.978024,60760.0,60759.0,0.006]
[1723603241555,0.002,60760.0,60759.0,0.006]
[1723603241955,0.002,60760.0,60759.0,0.0789]
[1723603244346,0.002,60760.0,60759.0,0.16053444]
[1723603244751,0.002,60760.0,60759.0,0.0789]
[1723603245453,0.002,60760.0,60759.0,0.28585402]
[1723603246453,0.002,60760.0,60759.0,0.20421958]
[1723603248757,0.002,60760.0,60759.0,0.20422011]
[1723603249554,0.002,60760.0,60759.0,0.30208853]
[1723603250456,0.002,60760.0,60759.0,0.20422011]
[1723603253159,0.002,60760.0,60759.0,0.13132011]
[1723603253359,0.084264,60760.0,60759.0,0.13132011]
[1723603257370,0.084264,60760.0,60759.0,0.22962498]
[1723603258070,0.084264,60760.0,60759.0,0.22963848]
[1723603262276,0.445064,60760.0,60759.0,0.22963848]
[1723603269465,0.445064,60760.0,60759.0,0.13133361]
[1723603269879,0.558864,60760.0,60759.0,0.22967422]
[1723603270886,0.3628,60760.0,60759.0,0.22967254]
[1723603271179,0.3608,60775.0,60772.0,0.082248]
[1723603271365,0.3608,60775.0,60773.0,0.53660281]
[1723603271676,0.37401177,60775.0,60774.0,0.12533193]
[1723603273673,0.01921177,60775.0,60774.0,0.12533193]
[1723603273876,0.38001177,60775.0,60774.0,0.12533193]
[1723603275186,0.37501177,60775.0,60774.0,0.12633193]
[1723603275678,0.37501177,60775.0,60774.0,0.20804366]
[1723603275871,0.3618,60775.0,60774.0,0.20804366]
[1723603276474,0.3618,60775.0,60774.0,0.08271173]
[1723603277076,0.3618,60775.0,60774.0,0.12629617]
[1723603277275,0.3618,60775.0,60774.0,0.61993617]
[1723603277276,0.001,60775.0,60774.0,0.61993617]
[1723603277584,0.001,60775.0,60774.0,0.30681205]
[1723603277776,0.001,60775.0,60774.0,0.20854117]
[1723603278175,0.001,60775.0,60774.0,0.30681205]
[1723603278380,0.001,60775.0,60774.0,0.30881205]
[1723603278580,0.001,60775.0,60774.0,0.21054117]
[1723603280380,0.001,60775.0,60774.0,0.70418117]
[1723603280686,0.001,60775.0,60774.0,0.21054117]
[1723603289494,0.3618,60775.0,60774.0,0.003]
[1723603290497,0.3618,60775.0,60774.0,0.06822482]
[1723603291291,0.3618,60775.0,60774.0,0.003]
[1723603292900,0.001,60775.0,60774.0,0.003]
[1723603293095,0.3618,60775.0,60774.0,0.003]
[1723603293500,0.001,60775.0,60774.0,0.003]
[1723603293702,0.3618,60775.0,60774.0,0.003]
[1723603295806,0.001,60775.0,60774.0,0.003]
[1723603296006,0.3618,60775.0,60774.0,0.003]
[1723603296995,0.444044,60775.0,60774.0,0.003]
[1723603302804,0.001,60775.0,60774.0,0.7246]
[1723603303000,0.00024683,60781.0,60774.0,0.85744]
[1723603303201,0.00024683,60781.0,60780.0,0.3608]
[1723603305206,0.00024683,60781.0,60776.0,0.443042]
[1723603306211,0.00524683,60781.0,60776.0,0.443042]
[1723603306510,0.00724683,60781.0,60776.0,0.443042]
[1723603306902,0.00524683,60781.0,60776.0,0.443042]
[1723603307200,0.00524683,60781.0,60776.0,0.446042]
[1723603307408,0.00624683,60781.0,60776.0,0.446042]
[1723603308804,0.00624683,60781.0,60776.0,0.085242]
[1723603309008,0.00624683,60781.0,60776.0,0.446042]
[1723603311210,0.00624683,60781.0,60776.0,0.521142]
[1723603312114,0.00624683,60781.0,60776.0,0.4389]
[1723603312314,0.00624683,60781.0,60780.0,0.082237]
[1723603314006,0.00524683,60781.0,60780.0,0.082237]
[1723603314407,0.00724683,60781.0,60780.0,0.082237]
[1723603317916,0.00724683,60781.0,60780.0,0.195937]
[1723603319315,0.12094683,60781.0,60777.0,0.3608]
[1723603319512,0.1137,60778.0,60774.0,0.01257146]
[1723603319716,0.4745,60775.0,60763.0,0.3608]
[1723603319917,0.1137,60771.0,60764.0,0.259]
[1723603320316,0.1137,60771.0,60767.0,0.32245262]
[1723603320722,0.1137,60776.0,60769.0,0.1137]
[1723603320919,0.1137,60778.0,60775.0,0.1137]
[1723603321221,0.1137,60779.0,60775.0,0.1137]
[1723603321424,0.001,60778.0,60775.0,0.1137]
[1723603321823,0.001,60778.0,60775.0,0.187]
[1723603322822,0.1137,60779.0,60775.0,0.189]
[1723603323319,0.1137,60779.0,60775.0,0.271243]
[1723603323520,0.3608,60780.0,60778.0,0.1137]
[1723603323722,0.00024683,60781.0,60778.0,0.1137]
[1723603323925,0.00024683,60781.0,60776.0,0.0708]
[1723603323926,0.00024683,60781.0,60780.0,0.17900256]
[1723603324727,0.00024683,60781.0,60780.0,0.1137]
[1723603324926,0.05612348,60784.0,60780.0,0.27774505]
[1723603325128,0.05612348,60784.0,60783.0,0.09793219]
[1723603325328,0.05612348,60784.0,60783.0,0.22320226]
[1723603325531,0.3608,60787.0,60783.0,0.39144363]
[1723603325719,0.3608,60787.0,60786.0,0.09791451]
[1723603325924,0.3608,60787.0,60786.0,0.22318458]
[1723603327033,0.1137,60788.0,60786.0,0.22318458]
[1723603327338,0.1137,60788.0,60787.0,0.12527007]
[1723603327633,0.1137,60788.0,60787.0,0.22318458]
[1723603327938,0.1137,60788.0,60787.0,0.12527007]
[1723603328627,0.1137,60788.0,60787.0,0.22318458]
[1723603328821,0.1137,60788.0,60787.0,0.12527007]
[1723603329021,0.1237,60788.0,60787.0,0.12527007]
[1723603330535,0.1357,60788.0,60787.0,0.12627007]
[1723603330733,0.4965,60788.0,60787.0,0.12627007]
[1723603331729,0.4965,60788.0,60787.0,0.22418458]
[1723603333924,0.4965,60788.0,60787.0,0.12627007]
[1723603334339,0.4965,60788.0,60787.0,0.22428294]
[1723603336140,0.4965,60788.0,60787.0,0.12627007]
[1723603336631,0.022,60788.0,60787.0,0.20849707]
[1723603336833,0.022,60788.0,60787.0,0.28249707]
[1723603337033,0.022,60788.0,60787.0,0.43495711]
[1723603338933,0.022,60788.0,60787.0,0.157227]
[1723603340838,0.022,60788.0,60787.0,0.16968689]
[1723603342646,0.022,60788.0,60787.0,0.24578689]
[1723603342833,0.3608,60800.0,60793.0,0.082219]
[1723603343037,0.3608,60800.0,60797.0,0.1137]
[1723603344743,0.3738,60800.0,60797.0,0.1137]
[1723603345247,0.3858,60800.0,60797.0,0.1137]
[1723603345944,0.3858,60800.0,60798.0,0.12523888]
[1723603346248,0.3858,60800.0,60799.0,0.12523888]
[1723603346539,0.3738,60800.0,60799.0,0.12523888]
[1723603347335,0.3668,60800.0,60799.0,0.12523888]
[1723603348445,0.3668,60800.0,60799.0,0.12623888]
[1723603350844,0.3668,60800.0,60799.0,0.12723888]
[1723603351838,0.006,60800.0,60799.0,0.12723888]
[1723603353545,0.006,60800.0,60799.0,0.20869567]
[1723603354042,0.03264659,60800.0,60799.0,0.002]
[1723603354450,0.11485659,60800.0,60799.0,0.002]
[1723603354747,0.082217,60795.0,60792.0,0.00024683]
[1723603354939,0.082217,60795.0,60782.0,0.01231063]
[1723603354940,0.4745,60793.0,60782.0,0.01231063]
[1723603355142,0.4745,60783.0,60777.0,0.082241]
[1723603355337,0.19573839,60780.0,60777.0,0.082241]
[1723603355750,0.1137,60780.0,60777.0,0.195941]
[1723603356237,0.06562464,60778.0,60777.0,0.20854881]
[1723603356546,0.06562464,60779.0,60778.0,0.082239]
[1723603356742,0.06562464,60780.0,60778.0,0.082239]
[1723603356946,0.06562464,60779.0,60778.0,0.082239]
[1723603360143,0.36104683,60785.0,60784.0,0.082231]
[1723603360144,0.08228522,60785.0,60784.0,0.082231]
[1723603360349,0.00024683,60785.0,60784.0,0.082231]
[1723603360548,0.00024683,60785.0,60784.0,0.775791]
[1723603361142,0.44302,60793.0,60784.0,0.90104744]
[1723603361341,0.44302,60793.0,60791.0,0.08148236]
[1723603361644,0.44302,60793.0,60792.0,0.08148236]
[1723603361844,0.55672,60793.0,60792.0,0.08148236]
[1723603362444,0.56931501,60793.0,60792.0,0.08148236]
[1723603362848,0.56931501,60793.0,60786.0,0.00024683]
[1723603362849,0.56931501,60793.0,60791.0,0.08148236]
[1723603363049,0.1137,60792.0,60791.0,0.08148236]
[1723603363249,0.1137,60792.0,60791.0,0.12525678]
[1723603363843,0.37439501,60793.0,60791.0,0.12525678]
[1723603364153,0.3678,60793.0,60792.0,0.12625678]
[1723603364452,0.3678,60793.0,60792.0,0.22403561]
[1723603364953,0.31845656,60793.0,60792.0,0.22403561]
[1723603365447,0.31745656,60793.0,60792.0,0.22403561]
[1723603365644,0.31845656,60793.0,60792.0,0.22403561]
[1723603366044,0.31245656,60793.0,60792.0,0.22303561]
[1723603366453,0.31345656,60793.0,60792.0,0.22403561]
[1723603366845,0.31345656,60793.0,60792.0,0.12625678]
[1723603367747,0.31945656,60793.0,60792.0,0.12725678]
[1723603368053,0.008,60793.0,60792.0,0.12725678]
[1723603369048,0.008,60793.0,60792.0,0.12724941]
[1723603369250,0.008,60793.0,60792.0,0.22500575]
[1723603370861,0.008,60793.0,60792.0,0.12724941]
[1723603372448,0.008,60793.0,60792.0,0.22500575]
[1723603373547,0.008,60793.0,60792.0,0.22500658]
[1723603373752,0.008,60793.0,60792.0,0.12725024]
[1723603374054,0.008,60793.0,60792.0,0.22501545]
[1723603374257,0.008,60793.0,60792.0,0.12725024]
[1723603375559,0.1217,60793.0,60792.0,0.12725024]
[1723603376854,0.008,60793.0,60792.0,0.12725024]
[1723603377048,0.008,60793.0,60792.0,1.46375124]
[1723603377251,0.42640805,60808.0,60792.0,1.52153024]
[1723603377252,0.4745,60803.0,60792.0,1.52153024]
[1723603377565,0.4745,60803.0,60798.0,0.1137]
[1723603377754,0.01264168,60802.0,60798.0,0.23895024]
[1723603378654,0.01264168,60802.0,60798.0,0.1137]
[1723603378958,0.01324683,60799.0,60798.0,0.196912]
[1723603380656,0.01324683,60799.0,60798.0,0.20956273]
[1723603383045,0.00024683,60799.0,60798.0,0.20856273]
[1723603383451,0.00924683,60799.0,60798.0,0.20956273]
[1723603383749,0.00924683,60799.0,60798.0,0.21056273]
[1723603384351,0.00924683,60799.0,60798.0,1.10400273]
[1723603384752,0.3608,60810.0,60805.0,0.082203]
[1723603384954,0.3608,60810.0,60808.0,0.1137]
[1723603386064,0.3608,60810.0,60806.0,0.1137]
[1723603386258,0.1137,60808.0,60806.0,0.1137]
[1723603386455,0.1137,60808.0,60805.0,0.001]
[1723603387063,0.1137,60808.0,60803.0,0.11394683]
[1723603388460,0.1137,60808.0,60805.0,0.001]
[1723603389062,0.1137,60808.0,60805.0,0.002]
[1723603391061,0.4745,60808.0,60805.0,0.002]
[1723603392865,0.1137,60806.0,60805.0,0.002]
[1723603393462,0.4745,60808.0,60805.0,0.002]
[1723603393665,0.1137,60806.0,60805.0,0.002]
[1723603393869,0.1137,60806.0,60805.0,0.001]
[1723603394070,0.4745,60808.0,60805.0,0.002]
[1723603394467,0.195902,60806.0,60805.0,0.002]
[1723603394871,1.089262,60806.0,60805.0,0.003]
[1723603396479,0.082204,60804.0,60803.0,0.00024683]
[1723603396974,0.575604,60804.0,60803.0,0.00024683]
[1723603397181,0.082204,60804.0,60803.0,0.00024683]
[1723603397677,0.1137,60806.0,60803.0,0.00024683]
[1723603397874,0.3608,60807.0,60803.0,0.11394683]
[1723603398374,0.3608,60807.0,60805.0,0.1137]
[1723603399776,0.3608,60808.0,60805.0,0.1137]
[1723603399980,0.3608,60808.0,60805.0,0.1147]
[1723603400380,0.4745,60808.0,60805.0,0.1147]
[1723603400979,0.4745,60808.0,60805.0,0.1157]
[1723603401371,0.02664262,60807.0,60805.0,0.1157]
[1723603402175,0.3608,60808.0,60806.0,0.1252247]
[1723603402176,0.4745,60808.0,60806.0,0.1252247]
[1723603402381,0.4745,60808.0,60807.0,0.1252247]
[1723603403787,0.41694433,60808.0,60807.0,0.1252247]
[1723603404575,0.41694433,60808.0,60807.0,0.1262284]
[1723603404774,0.41694433,60808.0,60807.0,0.20766798]
[1723603405074,0.41694433,60808.0,60807.0,0.08243958]
[1723603406172,0.71361958,60808.0,60807.0,0.001]
[1723603407182,0.62357125,60808.0,60807.0,0.001]
[1723603410584,0.70577025,60808.0,60807.0,0.001]
[1723603410788,0.8697747,60808.0,60807.0,0.001]
[1723603410989,0.70577025,60808.0,60807.0,0.001]
[1723603414188,0.60714017,60808.0,60807.0,0.001]
[1723603414392,0.556699,60808.0,60807.0,0.001]
[1723603415190,1.450059,60808.0,60807.0,0.001]
[1723603415394,1.050059,60808.0,60807.0,0.001]
[1723603415698,1.450059,60808.0,60807.0,0.001]
[1723603415883,1.050059,60808.0,60807.0,0.001]
[1723603416089,1.450059,60808.0,60807.0,0.001]
[1723603417790,1.050059,60808.0,60807.0,0.001]
[1723603417990,1.450059,60808.0,60807.0,0.001]
[1723603418498,1.050059,60808.0,60807.0,0.001]
[1723603418997,0.556699,60808.0,60807.0,0.001]
[1723603422999,0.556699,60808.0,60807.0,0.06620956]
[1723603427403,0.556699,60808.0,60807.0,0.001]
[1723603432502,0.082202,60806.0,60805.0,0.002]
[1723603432697,0.195902,60806.0,60805.0,0.002]
[1723603433398,1.089262,60806.0,60805.0,0.002]
[1723603433603,0.082213,60798.0,60790.0,0.082223]
[1723603433799,0.4745,60796.0,60791.0,0.08024009]
[1723603434900,0.3608,60796.0,60791.0,0.08024009]
[1723603435099,0.1137,60795.0,60791.0,0.08024009]
[1723603435299,0.1137,60792.0,60791.0,0.08724009]
[1723603435701,0.1137,60792.0,60791.0,0.01754009]
[1723603436708,0.1137,60792.0,60791.0,0.01354009]
[1723603437011,0.1137,60792.0,60791.0,0.02054009]
[1723603439207,0.195921,60792.0,60791.0,0.02054009]
[1723603440705,0.195921,60792.0,60791.0,0.01]
[1723603442713,0.556721,60792.0,60791.0,0.01]
[1723603444711,0.195921,60792.0,60791.0,0.01]
[1723603444912,0.556721,60792.0,60791.0,0.01]